bitfinex/quotes_SOLUSD_20250130
["timestamp","ask_amount","ask_price","bid_price","bid_amount"]
[1738234861679,13.41184853,241.46,241.42,12.366741]
[1738234861878,13.41184853,241.46,241.41,4.1423]
[1738234862181,13.66282853,241.49,241.41,4.1423]
[1738234864390,13.41184853,241.47,241.41,4.1423]
[1738234865698,13.41184853,241.47,241.42,0.063]
[1738234865886,13.41184853,241.47,241.43,4.1419]
[1738234869905,13.41184853,241.44,241.42,0.063]
[1738234870281,4.39208,241.49,241.42,0.063]
[1738234870282,21.32254841,241.43,241.42,0.063]
[1738234871991,21.57352841,241.43,241.42,0.063]
[1738234873000,21.82450841,241.43,241.42,0.063]
[1738234874398,25.96640841,241.43,241.42,0.063]
[1738234876201,18.05570853,241.43,241.42,0.063]
[1738234877585,19.69900853,241.43,241.42,0.063]
[1738234878600,22.43900853,241.43,241.42,0.063]
[1738234881112,30.34970841,241.43,241.42,0.063]
[1738234881292,21.82450841,241.43,241.42,0.063]
[1738234881502,13.91380853,241.43,241.42,0.063]
[1738234882494,21.82450841,241.43,241.42,0.063]
[1738234882694,25.96640841,241.43,241.42,0.063]
[1738234892416,0.25098,241.38,241.34,3.220332]
[1738234892735,13.66282853,241.38,241.34,3.220332]
[1738234894511,13.66282853,241.38,241.33,4.2066]
[1738234895221,0.25098,241.36,241.33,0.063]
[1738234896324,13.66282853,241.36,241.33,0.063]
[1738234896519,0.25098,241.36,241.33,0.063]
[1738234903331,0.25098,241.36,241.33,4.2066]
[1738234903632,0.25098,241.36,241.33,12.11729988]
[1738234905507,7.91069988,241.42,241.35,7.91069988]
[1738234905708,0.03,241.43,241.35,7.91069988]
[1738234905912,13.94380853,241.43,241.35,7.91069988]
[1738234906326,13.94380853,241.43,241.37,7.91069988]
[1738234907433,13.94380853,241.43,241.38,4.1428]
[1738234907929,13.69282853,241.43,241.38,4.1428]
[1738234908135,0.28098,241.43,241.38,4.1428]
[1738234911823,0.03,241.43,241.38,4.1428]
[1738234912023,0.03,241.43,241.39,7.91069988]
[1738234912224,0.03,241.43,241.41,7.91069988]
[1738234913818,0.03,241.43,241.42,4.1421]
[1738234928150,0.03,241.43,241.4,7.91069988]
[1738234928328,0.03,241.43,241.41,12.05299988]
[1738234930442,0.03,241.43,241.42,7.91069988]
[1738234931646,0.03,241.43,241.42,12.05279988]
[1738234933932,0.0001,241.43,241.42,43.6955994]
[1738234934254,18.89605636,241.52,241.45,20.0]
[1738234934436,18.89605636,241.52,241.51,7.91069988]
[1738234934634,6.203,241.59,241.51,7.91069988]
[1738234934850,0.03,241.61,241.54,7.91069988]
[1738234935043,0.03,241.61,241.55,7.91069988]
[1738234935236,13.44184853,241.61,241.55,7.91069988]
[1738234935764,0.03,241.61,241.59,7.91069988]
[1738234935937,0.03,241.61,241.6,12.04969988]
[1738234943144,0.03,241.61,241.6,7.91069988]
[1738234951074,0.03,241.61,241.58,7.91069988]
[1738234951781,0.03,241.61,241.56,7.91069988]
[1738234951982,0.03,241.61,241.58,7.91069988]
[1738234953056,0.03,241.61,241.58,12.04989988]
[1738234953461,0.03,241.61,241.58,7.91069988]
[1738234953665,0.03,241.61,241.56,7.91069988]
[1738234954060,13.41184853,241.6,241.54,7.91069988]
[1738234956162,13.41184853,241.6,241.54,12.05069988]
[1738234958563,17.55094853,241.6,241.54,7.91069988]
[1738234958764,17.55094853,241.6,241.52,7.91069988]
[1738234959975,8.16167988,241.57,241.5,7.91069988]
[1738234961278,8.16167988,241.57,241.5,12.05139988]
[1738234961587,12.30127988,241.57,241.5,12.05139988]
[1738234962888,12.30127988,241.57,241.5,7.91069988]
[1738234963685,8.16167988,241.55,241.46,12.05199988]
[1738234963889,8.16167988,241.53,241.44,12.05229988]
[1738234964966,13.41184853,241.51,241.44,12.05229988]
[1738234966369,8.16167988,241.51,241.44,7.91069988]
[1738234967687,0.25098,241.5,241.44,7.91069988]
[1738234967890,8.16167988,241.49,241.43,0.063]
[1738234968294,12.30267988,241.49,241.43,0.063]
[1738234969166,13.41184853,241.5,241.44,7.91069988]
[1738234969373,13.41184853,241.5,241.47,7.91069988]
[1738234970289,7.91069988,241.55,241.47,7.91069988]
[1738234970465,12.05069988,241.55,241.47,12.05189988]
[1738234971682,18.05390853,241.54,241.47,12.05189988]
[1738234972297,18.05390853,241.54,241.47,7.91069988]
[1738234972972,18.05390853,241.54,241.47,12.05189988]
[1738234977776,18.05390853,241.54,241.47,7.91069988]
[1738234978493,13.66282853,241.54,241.47,12.05189988]
[1738234978798,13.66282853,241.54,241.49,7.91069988]
[1738234978973,1.5162,241.59,241.53,7.91069988]
[1738234979169,0.03,241.61,241.55,7.91069988]
[1738234980013,13.94380853,241.61,241.55,7.91069988]
[1738234981676,13.69282853,241.61,241.55,7.91069988]
[1738234981881,21.60352841,241.61,241.53,12.05089988]
[1738234982269,0.03,241.54,241.53,12.05089988]
[1738234983499,0.03,241.54,241.53,7.91069988]
[1738234984005,0.03,241.54,241.51,7.91069988]
[1738234984577,0.03,241.54,241.49,7.91069988]
[1738234984977,0.03,241.54,241.47,12.05199988]
[1738234985183,13.41184853,241.52,241.45,7.91069988]
[1738234985399,13.41184853,241.52,241.46,4.1414]
[1738234985816,17.55224853,241.52,241.45,7.91069988]
[1738234987517,13.41184853,241.5,241.45,7.91069988]
[1738234988389,13.41184853,241.5,241.45,12.05219988]
[1738234990217,7.91069988,241.51,241.48,20.0]
[1738234990407,0.03,241.61,241.57,7.91069988]
[1738234990594,0.03,241.61,241.6,7.91069988]
[1738234992214,0.03,241.61,241.6,12.04969988]
[1738234992710,0.03,241.61,241.6,16.47679829]
[1738234996123,0.03,241.68,241.6,16.47679829]
[1738234996302,0.03,241.68,241.66,12.33779829]
[1738234998203,0.03,241.68,241.66,16.47579829]
[1738235001109,0.03,241.68,241.66,328.47579829]
[1738235002222,0.0001,241.68,241.67,13.20921272]
[1738235002531,0.0001,241.68,241.67,25.54701101]
[1738235002722,0.0001,241.68,241.67,29.68481101]
[1738235003237,0.0001,241.68,241.67,28.81339658]
[1738235003732,0.0001,241.68,241.67,16.47559829]
[1738235005212,0.0001,241.68,241.67,328.47559829]
[1738235005529,0.0001,241.68,241.67,16.47559829]
[1738235006442,0.0001,241.68,241.67,12.33779829]
[1738235006619,0.0001,241.68,241.65,12.33779829]
[1738235006815,0.0001,241.68,241.63,16.47629829]
[1738235007408,0.0001,241.68,241.65,12.33779829]
[1738235009316,0.0001,241.68,241.67,12.33779829]
[1738235010745,0.0001,241.68,241.67,16.47559829]
[1738235011518,0.0001,241.68,241.61,0.063]
[1738235011519,12.33789829,241.68,241.61,0.063]
[1738235011723,13.66282853,241.67,241.61,0.063]
[1738235012734,13.66282853,241.67,241.61,12.40079829]
[1738235012922,17.80062853,241.67,241.61,12.40079829]
[1738235013322,34.37064053,241.67,241.61,12.40079829]
[1738235014839,0.25098,241.66,241.61,0.063]
[1738235015134,0.25098,241.65,241.61,0.063]
[1738235016540,4.38928,241.65,241.61,0.063]
[1738235016730,0.25098,241.62,241.61,0.063]
[1738235017930,0.25098,241.62,241.61,0.063]
[1738235018318,26.00062682,241.62,241.61,0.063]
[1738235018520,30.13932682,241.62,241.61,0.063]
[1738235018924,30.39030682,241.62,241.61,0.063]
[1738235020744,30.39030682,241.62,241.45,16.47939829]
[1738235020745,0.25098,241.54,241.45,16.47939829]
[1738235021052,13.41184853,241.51,241.45,16.47939829]
[1738235023529,12.33779829,241.56,241.49,12.33779829]
[1738235023925,16.47719829,241.58,241.49,12.33779829]
[1738235024233,13.91380853,241.57,241.49,12.33779829]
[1738235024453,0.25098,241.55,241.49,12.33779829]
[1738235026981,0.25098,241.55,241.49,4.1408]
[1738235027626,13.41184853,241.53,241.49,4.1408]
[1738235028049,13.41184853,241.51,241.45,12.33779829]
[1738235028528,0.25098,241.5,241.45,12.33779829]
[1738235028735,0.25098,241.5,241.44,4.1418]
[1738235029071,0.25098,241.5,241.49,0.063]
[1738235029561,13.66282853,241.5,241.49,0.063]
[1738235031665,26.00062682,241.5,241.49,0.063]
[1738235031848,30.39230682,241.5,241.49,0.063]
[1738235039485,13.41184853,241.5,241.49,0.063]
[1738235040374,13.41184853,241.5,241.48,3.7041]
[1738235040767,13.41184853,241.5,241.44,16.47959829]
[1738235042189,13.41184853,241.5,241.46,12.33779829]
[1738235042474,13.94419829,241.56,241.48,12.33779829]
[1738235043158,4.1395,241.58,241.5,12.33779829]
[1738235043159,12.33779829,241.58,241.5,12.33779829]
[1738235043373,12.33779829,241.6,241.52,12.33779829]
[1738235043681,12.33779829,241.6,241.53,4.1402]
[1738235043881,13.66282853,241.59,241.53,4.1402]
[1738235045048,13.41184853,241.59,241.53,4.1402]
[1738235045254,0.03,241.61,241.54,12.33779829]
[1738235045783,13.69282853,241.61,241.54,12.33779829]
[1738235046692,13.69282853,241.61,241.55,4.1399]
[1738235048076,0.03,241.61,241.55,4.1399]
[1738235048382,13.69282853,241.61,241.55,4.1399]
[1738235048963,13.44184853,241.61,241.55,4.1399]
[1738235049688,0.25098,241.6,241.54,16.47779829]
[1738235049992,13.41184853,241.57,241.5,12.33779829]
[1738235050996,12.33779829,241.54,241.49,4.1407]
[1738235052397,12.33779829,241.54,241.47,4.1413]
[1738235052886,12.46328829,241.58,241.48,12.33779829]
[1738235053495,0.12549,241.56,241.48,12.33779829]
[1738235053865,12.33779829,241.58,241.48,12.33779829]
[1738235054376,13.41184853,241.57,241.49,4.1409]
[1738235055392,12.33779829,241.54,241.49,4.1409]
[1738235055566,13.41184853,241.53,241.49,4.1409]
[1738235056373,12.58877829,241.56,241.49,4.1409]
[1738235056974,13.41184853,241.55,241.49,4.1409]
[1738235058701,13.41184853,241.55,241.48,7.90581472]
[1738235059892,13.41184853,241.55,241.49,4.1409]
[1738235062800,13.41184853,241.53,241.47,4.1413]
[1738235063984,13.41184853,241.51,241.45,4.1416]
[1738235064600,13.41184853,241.51,241.48,0.063]
[1738235064806,8.15679472,241.5,241.48,0.063]
[1738235065297,13.41184853,241.49,241.48,0.063]
[1738235065511,13.66282853,241.49,241.48,0.063]
[1738235065802,13.91380853,241.49,241.48,0.063]
[1738235065998,18.05470853,241.49,241.48,0.063]
[1738235075820,18.05470853,241.49,241.48,0.013]
[1738235080485,13.91380853,241.49,241.48,0.013]
[1738235081100,0.25098,241.49,241.48,0.013]
[1738235083797,7.90581472,241.54,241.48,0.013]
[1738235084185,13.66282853,241.53,241.48,0.013]
[1738235085506,2.83,241.55,241.5,7.90581472]
[1738235085507,0.03,241.55,241.5,7.90581472]
[1738235085707,0.03,241.55,241.52,7.90581472]
[1738235085885,0.28098,241.55,241.5,7.90581472]
[1738235086210,0.28098,241.55,241.48,7.91881472]
[1738235086913,13.66282853,241.54,241.48,7.91881472]
[1738235087286,13.66282853,241.54,241.49,4.1409]
[1738235087797,21.56864325,241.52,241.48,0.013]
[1738235087995,0.25098,241.5,241.48,0.013]
[1738235088195,13.66282853,241.5,241.48,0.013]
[1738235089117,8.15679472,241.5,241.48,0.013]
[1738235089547,13.66282853,241.49,241.48,0.013]
[1738235089894,13.91380853,241.49,241.48,0.013]
[1738235090720,26.275082,241.49,241.48,0.013]
[1738235090908,30.415982,241.49,241.48,0.013]
[1738235095627,13.91380853,241.49,241.48,0.013]
[1738235096129,26.275082,241.49,241.48,0.013]
[1738235096799,30.415982,241.49,241.48,0.013]
[1738235098900,13.66282853,241.49,241.48,0.013]
[1738235099109,20.25098,241.49,241.48,0.013]
[1738235099514,33.66282853,241.49,241.48,0.013]
[1738235100836,13.66282853,241.49,241.48,0.013]
[1738235101922,30.415982,241.49,241.48,0.013]
[1738235105537,31.415982,241.49,241.48,0.013]
[1738235107940,32.415982,241.49,241.48,0.013]
[1738235109949,31.415982,241.49,241.48,0.013]
[1738235111342,32.415982,241.49,241.48,0.013]
[1738235112342,32.445982,241.49,241.48,0.013]
[1738235112547,27.99982055,241.49,241.48,0.013]
[1738235114443,41.82892055,241.45,241.44,0.063]
[1738235115529,45.97052055,241.45,241.44,0.063]
[1738235117234,77.63096863,241.45,241.44,0.063]
[1738235117439,13.41184853,241.44,241.43,0.063]
[1738235117747,14.91380853,241.44,241.43,0.063]
[1738235118244,33.91380853,241.41,241.36,0.063]
[1738235118423,21.82892055,241.37,241.36,0.063]
[1738235119426,25.97192055,241.37,241.36,0.063]
[1738235121334,26.97192055,241.37,241.36,0.063]
[1738235123464,25.97192055,241.37,241.36,0.063]
[1738235124647,26.97192055,241.37,241.36,0.063]
[1738235126064,25.97192055,241.37,241.36,0.063]
[1738235133242,13.91380853,241.36,241.35,0.063]
[1738235133458,33.91380853,241.34,241.25,0.063]
[1738235133669,41.82892055,241.34,241.25,0.063]
[1738235134765,45.97242055,241.34,241.25,0.063]
[1738235135642,45.97242055,241.34,241.25,4.208]
[1738235136745,45.97242055,241.34,241.25,0.063]
[1738235136945,48.73242055,241.34,241.25,0.063]
[1738235141973,84.60096863,241.34,241.33,0.0001]
[1738235142275,84.60096863,241.34,241.25,0.063]
[1738235142276,13.91380853,241.26,241.25,0.063]
[1738235142457,21.82892055,241.26,241.25,0.063]
[1738235143464,25.97382055,241.26,241.25,0.063]
[1738235145149,14.91380853,241.25,241.24,0.0001]
[1738235145579,13.91380853,241.25,241.24,0.0001]
[1738235146848,13.66282853,241.25,241.24,0.0001]
[1738235147563,20.0,241.21,241.18,3.8983]
[1738235147878,13.41184853,241.2,241.17,0.063]
[1738235148181,0.25098,241.19,241.17,0.063]
[1738235151962,13.66282853,241.18,241.17,0.063]
[1738235152978,7.91511202,241.2,241.17,0.063]
[1738235153270,13.66282853,241.18,241.17,0.063]
[1738235156060,7.91511202,241.22,241.17,0.063]
[1738235156258,7.91511202,241.24,241.17,0.063]
[1738235156580,13.41184853,241.2,241.17,0.063]
[1738235156966,0.25098,241.19,241.17,0.063]
[1738235157172,21.57794055,241.18,241.17,0.063]
[1738235158483,21.82892055,241.18,241.17,0.063]
[1738235159782,25.97512055,241.18,241.17,0.063]
[1738235161079,21.82892055,241.18,241.17,0.063]
[1738235161593,25.97512055,241.18,241.17,0.063]
[1738235163502,0.25098,241.18,241.17,0.063]
[1738235163670,4.1456,241.22,241.17,0.063]
[1738235163869,6.4794,241.25,241.17,7.97811202]
[1738235163870,9.2394,241.25,241.17,7.97811202]
[1738235164092,13.91380853,241.24,241.18,4.1462]
[1738235164608,21.82892055,241.24,241.18,4.1462]
[1738235164892,21.82892055,241.24,241.17,1.6402]
[1738235166494,25.97422055,241.24,241.17,1.6402]
[1738235166987,21.82892055,241.24,241.17,1.6402]
[1738235167296,21.82892055,241.24,241.17,13.70161202]
[1738235168295,13.41184853,241.24,241.19,7.91511202]
[1738235168489,20.03,241.25,241.19,7.91511202]
[1738235168887,13.41184853,241.24,241.19,7.91511202]
[1738235169493,13.41184853,241.24,241.2,4.1459]
[1738235169991,13.41184853,241.24,241.17,12.0063]
[1738235169992,0.25098,241.23,241.17,1.6402]
[1738235170193,0.25098,241.23,241.17,5.7866]
[1738235170578,0.25098,241.23,241.17,13.70171202]
[1738235173379,0.25098,241.23,241.17,9.55531202]
[1738235173575,13.41184853,241.2,241.17,1.6402]
[1738235178107,20.0,241.18,241.17,0.063]
[1738235178311,41.57794055,241.18,241.17,0.063]
[1738235179503,45.97512055,241.18,241.17,0.063]
[1738235180313,33.91380853,241.14,241.13,0.063]
[1738235180519,41.82892055,241.14,241.13,0.063]
[1738235181391,45.97582055,241.14,241.13,0.063]
[1738235181899,0.50196,241.09,241.05,1.5625]
[1738235182206,0.25098,241.07,241.05,1.5625]
[1738235182408,7.91511202,241.1,241.05,1.5625]
[1738235183300,13.91380853,241.09,241.05,1.5625]
[1738235183609,13.91380853,241.09,241.01,14.33601202]
[1738235183797,13.91380853,241.09,241.01,18.48511202]
[1738235184411,0.25098,241.07,241.01,18.48511202]
[1738235184631,13.66282853,241.07,241.01,14.33601202]
[1738235185190,13.66282853,241.07,241.01,18.48511202]
[1738235186096,0.25098,241.05,241.01,14.33601202]
[1738235186304,13.66282853,241.05,241.01,14.33601202]
[1738235186506,0.25098,241.05,241.01,14.33601202]
[1738235186819,21.57794055,241.03,240.99,1.6439]
[1738235187195,13.66282853,241.01,240.99,1.6439]
[1738235187396,13.66282853,241.01,240.96,4.1499]
[1738235187597,8.16609202,241.01,240.96,4.1499]
[1738235187799,13.66282853,241.01,240.96,4.1499]
[1738235188394,0.25098,241.01,240.96,12.06501202]
[1738235188904,13.66282853,241.01,240.96,12.06501202]
[1738235189396,13.41184853,241.01,240.98,7.91511202]
[1738235191016,13.41184853,241.01,240.99,4.1495]
[1738235191230,13.41184853,241.01,240.97,12.06481202]
[1738235191413,13.66282853,241.0,240.94,13.73081202]
[1738235192400,0.25098,241.0,240.94,13.73081202]
[1738235192722,13.66282853,241.0,240.94,13.73081202]
[1738235192921,0.25098,241.0,240.95,7.91511202]
[1738235193124,0.25098,241.0,240.94,13.73081202]
[1738235194224,8.16609202,241.0,240.94,5.8157]
[1738235194529,21.57794055,240.98,240.93,0.063]
[1738235194913,13.66282853,240.98,240.93,0.063]
[1738235196016,13.66282853,240.95,240.93,0.063]
[1738235196810,0.25098,240.95,240.93,0.063]
[1738235197606,33.66282853,240.94,240.93,0.063]
[1738235199213,41.57794055,240.94,240.93,0.063]
[1738235204937,45.97932055,240.94,240.93,0.063]
[1738235206113,48.71932055,240.94,240.93,0.063]
[1738235207515,36.65380853,240.94,240.93,0.063]
[1738235211236,48.71932055,240.94,240.93,0.063]
[1738235212943,40.80420853,240.94,240.93,0.063]
[1738235213824,36.65380853,240.94,240.93,0.063]
[1738235215628,36.40282853,240.94,240.93,0.063]
[1738235215834,33.66282853,240.94,240.93,0.063]
[1738235219736,33.41184853,240.94,240.93,0.063]
[1738235219931,13.41184853,240.94,240.93,0.063]
[1738235220154,13.41184853,240.94,240.93,12.12861202]
[1738235223955,7.91511202,241.05,240.93,12.12861202]
[1738235224157,13.66282853,241.04,240.98,7.91511202]
[1738235224554,0.25098,241.04,240.98,7.91511202]
[1738235225864,0.25098,241.04,240.98,12.06471202]
[1738235226653,21.32696055,241.05,240.98,12.06471202]
[1738235226856,13.41184853,241.05,240.98,12.06471202]
[1738235227059,13.41184853,241.02,241.0,7.91511202]
[1738235228245,13.41184853,241.02,241.0,12.06441202]
[1738235228760,13.66282853,241.06,241.0,12.06441202]
[1738235229474,0.25098,241.05,240.98,7.91511202]
[1738235230160,13.66282853,241.02,240.98,7.91511202]
[1738235231667,13.41184853,241.02,240.98,12.06471202]
[1738235232371,13.66282853,241.01,240.98,7.91511202]
[1738235232668,21.57794055,241.01,240.95,4.15]
[1738235233556,21.57794055,241.01,240.94,4.1504]
[1738235234882,21.57794055,241.01,240.94,12.06551202]
[1738235236680,21.57794055,241.01,240.94,4.1504]
[1738235236878,25.72714055,241.01,240.94,4.1504]
[1738235237194,13.66282853,240.98,240.93,0.063]
[1738235238854,13.91380853,240.96,240.93,0.063]
[1738235242279,33.66282853,240.94,240.93,0.063]
[1738235243861,40.80420853,240.94,240.93,0.063]
[1738235246280,13.91380853,240.93,240.92,0.063]
[1738235246583,21.82892055,240.93,240.92,0.063]
[1738235247681,25.97942055,240.93,240.92,0.063]
[1738235248577,13.91380853,240.89,240.88,0.063]
[1738235249254,13.91380853,240.89,240.82,11.05351202]
[1738235250781,13.66282853,240.85,240.82,11.05351202]
[1738235250984,0.25098,240.85,240.82,6.90111202]
[1738235251365,0.25098,240.85,240.81,4.1525]
[1738235251558,0.25098,240.84,240.81,7.91511202]
[1738235251764,20.0,240.9,240.83,7.91511202]
[1738235251962,20.0,240.9,240.86,7.91511202]
[1738235252982,20.0,240.86,240.84,7.91511202]
[1738235253286,13.41184853,240.85,240.84,7.91511202]
[1738235254073,13.41184853,240.86,240.84,7.91511202]
[1738235254583,13.41184853,240.86,240.74,0.62290179]
[1738235254584,20.25098,240.87,240.82,7.91511202]
[1738235254759,0.25098,240.85,240.8,7.91511202]
[1738235256673,0.25098,240.85,240.81,4.1526]
[1738235257484,0.25098,240.85,240.8,12.06791202]
[1738235258178,0.25098,240.8,240.75,7.91511202]
[1738235258386,13.66282853,240.8,240.75,12.06871202]
[1738235259488,13.41184853,240.8,240.76,7.91511202]
[1738235259784,13.41184853,240.8,240.78,7.91511202]
[1738235260361,8.16609202,240.87,240.79,7.91511202]
[1738235260362,0.25098,240.87,240.79,7.91511202]
[1738235260568,0.25098,240.87,240.81,7.91511202]
[1738235260962,33.66282853,240.86,240.81,7.91511202]
[1738235261285,33.66282853,240.86,240.75,10.3842]
[1738235261286,33.41184853,240.86,240.84,7.91511202]
[1738235261465,33.41184853,240.86,240.76,0.62286494]
[1738235261466,33.41184853,240.86,240.85,7.91511202]
[1738235262292,33.41184853,240.86,240.83,7.91511202]
[1738235263598,33.41184853,240.84,240.83,12.06731202]
[1738235263767,33.41184853,240.84,240.83,4.1522]
[1738235265186,13.41184853,240.83,240.81,7.91511202]
[1738235265368,13.41184853,240.83,240.75,10.3842]
[1738235265369,13.41184853,240.83,240.79,7.91511202]
[1738235267682,13.41184853,240.83,240.8,4.1528]
[1738235267880,13.41184853,240.83,240.81,7.91511202]
[1738235268586,13.41184853,240.83,240.8,4.1528]
[1738235269383,13.41184853,240.83,240.81,7.91511202]
[1738235271291,13.41184853,240.83,240.81,12.06761202]
[1738235273289,13.41184853,240.83,240.81,4.1525]
[1738235273792,13.41184853,240.83,240.79,4.1829]
[1738235276006,20.0,240.8,240.79,0.03]
[1738235276177,41.57794055,240.8,240.79,0.03]
[1738235276709,33.66282853,240.8,240.79,0.03]
[1738235283616,13.41184853,240.8,240.79,7.94511202]
[1738235285912,13.41184853,240.8,240.79,12.09801202]
[1738235288198,26.43915016,240.87,240.79,12.09801202]
[1738235288506,26.43915016,240.87,240.85,7.91511202]
[1738235288807,13.41184853,240.87,240.85,7.91511202]
[1738235291092,13.41184853,240.87,240.84,4.1519]
[1738235291315,13.41184853,240.87,240.84,12.06701202]
[1738235291822,13.41184853,240.87,240.83,7.91511202]
[1738235292116,0.25098,240.86,240.82,7.91511202]
[1738235292625,13.41184853,240.83,240.8,7.91511202]
[1738235294017,13.41184853,240.83,240.8,12.06791202]
[1738235296819,13.41184853,240.83,240.81,7.91511202]
[1738235301720,13.41184853,240.83,240.82,7.91511202]
[1738235302027,13.41184853,240.83,240.82,12.06751202]
[1738235302601,0.063,240.88,240.82,12.06751202]
[1738235302928,0.063,240.88,240.85,7.91511202]
[1738235303527,33.41184853,240.87,240.86,7.91511202]
[1738235303921,13.41184853,240.86,240.85,7.91511202]
[1738235305438,0.063,240.88,240.85,12.06701202]
[1738235305734,0.063,240.9,240.87,7.91511202]
[1738235305907,10.5801,241.03,240.89,7.91511202]
[1738235306110,33.66282853,240.99,240.98,7.91511202]
[1738235306512,13.41184853,240.98,240.96,7.91511202]
[1738235307130,0.25098,240.99,240.97,7.91511202]
[1738235307507,0.25098,240.99,240.89,4.77368469]
[1738235307508,13.41184853,240.97,240.89,4.77368469]
[1738235307834,13.41184853,240.97,240.96,7.91511202]
[1738235310335,0.25098,240.96,240.93,7.91511202]
[1738235310938,33.41184853,240.94,240.93,7.91511202]
[1738235311433,33.66282853,240.94,240.93,7.91511202]
[1738235311640,13.41184853,240.93,240.91,7.91511202]
[1738235312017,13.41184853,240.93,240.92,7.91511202]
[1738235314244,13.41184853,240.93,240.91,7.91511202]
[1738235314420,0.25098,240.92,240.88,7.91511202]
[1738235314612,0.25098,240.92,240.86,7.91511202]
[1738235315831,0.25098,240.92,240.87,7.91511202]
[1738235316323,0.25098,240.9,240.86,7.91511202]
[1738235316928,0.25098,240.9,240.87,0.03]
[1738235317237,13.41184853,240.89,240.88,7.91511202]
[1738235317435,20.31398,240.93,240.88,7.91511202]
[1738235317642,20.063,240.93,240.91,7.91511202]
[1738235318042,13.41184853,240.92,240.91,7.91511202]
[1738235319541,0.063,240.93,240.91,7.91511202]
[1738235320047,0.063,240.93,240.9,4.151]
[1738235321447,13.47484853,240.93,240.9,4.151]
[1738235321841,13.47484853,240.93,240.9,7.91511202]
[1738235324450,13.47484853,240.93,240.91,4.1509]
[1738235324626,0.063,240.93,240.91,12.06601202]
[1738235326936,0.063,240.93,240.91,4.1509]
[1738235327142,0.063,240.93,240.9,7.91511202]
[1738235328032,0.063,240.93,240.89,7.91511202]
[1738235329731,0.063,240.93,240.9,7.94511202]
[1738235329929,0.063,240.93,240.92,7.91511202]
[1738235330328,0.063,240.93,240.91,7.91511202]
[1738235330723,0.063,240.93,240.9,0.03]
[1738235333256,0.063,240.93,240.9,7.94511202]
[1738235334954,0.063,240.93,240.91,4.1509]
[1738235336058,0.063,240.93,240.9,12.09611202]
[1738235339768,0.063,240.93,240.9,0.03]
[1738235341439,13.41184853,240.92,240.9,0.03]
[1738235342860,0.25098,240.91,240.9,0.03]
[1738235345955,13.91380853,240.91,240.9,0.03]
[1738235347252,18.06470853,240.91,240.9,0.03]
[1738235348167,101.06470853,240.91,240.9,0.03]
[1738235348350,108.97982055,240.91,240.9,0.03]
[1738235349665,25.97982055,240.91,240.9,0.03]
[1738235353473,20.50196,240.88,240.87,0.03]
[1738235353677,44.56892055,240.88,240.87,0.03]
[1738235355173,0.50196,240.83,240.79,0.03]
[1738235355363,0.50196,240.8,240.79,0.03]
[1738235355557,13.91380853,240.8,240.79,0.03]
[1738235357673,13.66282853,240.8,240.79,0.03]
[1738235360578,13.91380853,240.8,240.79,0.03]
[1738235366759,28.45490853,240.8,240.79,0.03]
[1738235379859,32.60770853,240.8,240.79,0.03]
[1738235383874,28.45490853,240.8,240.79,0.03]
[1738235389276,40.52282055,240.8,240.79,0.03]
[1738235389871,28.45490853,240.8,240.79,0.03]
[1738235390194,13.41184853,240.8,240.79,7.94511202]
[1738235394693,13.91380853,240.8,240.79,0.03]
[1738235395198,25.98172055,240.8,240.79,0.03]
[1738235403906,25.98172055,240.8,240.68,1.6152]
[1738235403907,20.50196,240.76,240.68,1.6152]
[1738235404091,0.50196,240.69,240.68,0.063]
[1738235404406,13.91380853,240.69,240.68,0.063]
[1738235405205,21.82892055,240.69,240.68,0.063]
[1738235405893,25.98362055,240.69,240.68,0.063]
[1738235406279,21.82892055,240.69,240.68,0.063]
[1738235406485,13.91380853,240.69,240.68,0.063]
[1738235406695,13.41184853,240.69,240.68,7.97811202]
[1738235406883,36.32217392,240.78,240.68,12.13291202]
[1738235407096,24.2538619,240.78,240.71,7.91511202]
[1738235407882,13.91380853,240.77,240.71,7.91511202]
[1738235408083,13.91380853,240.77,240.73,7.91511202]